fUST/lending_fUST_20250402
["ID","MTS","AMOUNT","RATE_DAILY","PERIOD"]
[356985957,1743525055896,-385.08572755,0.00018356,2]
[356985958,1743525055908,-630.22,0.00018356,2]
[356985959,1743525055920,-500.0,0.00018356,2]
[356985960,1743525055933,-1029.55,0.00018356,2]
[356985961,1743525055945,-500.0,0.00018356,2]
[356985962,1743525055956,-395.00919898,0.00018356,2]
[356985963,1743525055966,-600.51,0.00018356,2]
[356985964,1743525055978,-500.0,0.00018356,2]
[356985965,1743525055990,-500.0,0.00018356,2]
[356985966,1743525056001,-500.0,0.00018356,2]
[356985967,1743525056014,-500.0,0.00018356,2]
[356985968,1743525056026,-500.0,0.00018356,2]
[356985969,1743525056038,-500.0,0.00018356,2]
[356985970,1743525056049,-500.0,0.00018356,2]
[356985971,1743525056059,-500.0,0.00018356,2]
[356985972,1743525056071,-500.0,0.00018356,2]
[356985973,1743525056082,-544.75,0.00018356,2]
[356985974,1743525056093,-500.0,0.00018356,2]
[356985975,1743525056104,-500.0,0.00018356,2]
[356985976,1743525056116,-500.0,0.00018356,2]
[356985977,1743525056127,-500.0,0.0001863,2]
[356985978,1743525056138,-500.0,0.0001863,2]
[356985979,1743525056150,-500.0,0.0001863,2]
[356985980,1743525056161,-630.22,0.0001863,2]
[356985981,1743525056172,-500.0,0.0001863,2]
[356985982,1743525056184,-1029.55,0.0001863,2]
[356985983,1743525056196,-500.0,0.0001863,2]
[356985984,1743525056210,-600.51,0.0001863,2]
[356985985,1743525056221,-500.0,0.0001863,2]
[356985986,1743525056233,-500.0,0.0001863,2]
[356985987,1743525056244,-500.0,0.0001863,2]
[356985988,1743525056255,-500.0,0.0001863,2]
[356985989,1743525056266,-647.29304762,0.0001863,2]
[356985990,1743525056281,-500.0,0.0001863,2]
[356985991,1743525056294,-451.29,0.0001863,2]
[356985992,1743525056317,-500.0,0.0001863,2]
[356985993,1743525056332,-500.0,0.0001863,2]
[356985994,1743525056345,-544.75,0.0001863,2]
[356985995,1743525056356,-500.0,0.0001863,2]
[356985996,1743525056367,-500.0,0.0001863,2]
[356985997,1743525056379,-500.0,0.0001863,2]
[356985998,1743525056390,-1209.81978412,0.00018693,2]
[356985999,1743525056401,-200.0,0.00018767,2]
[356986000,1743525056412,-200.0,0.00018767,2]
[356986001,1743525056423,-249.0,0.000189,2]
[356986002,1743525056435,-500.0,0.00018904,2]
[356986003,1743525056448,-288.07449933,0.00018904,2]
[356986004,1743525056461,-500.0,0.00018904,2]
[356986005,1743525056473,-630.22,0.00018904,2]
[356986006,1743525056484,-500.0,0.00018904,2]
[356986007,1743525056496,-1029.55,0.00018904,2]
[356986008,1743525056507,-500.0,0.00018904,2]
[356986009,1743525056518,-600.51,0.00018904,2]
[356986010,1743525056533,-500.0,0.00018904,2]
[356986011,1743525056545,-500.0,0.00018904,2]
[356986012,1743525056556,-500.0,0.00018904,2]
[356986013,1743525056568,-500.0,0.00018904,2]
[356986014,1743525056580,-500.0,0.00018904,2]
[356986015,1743525056592,-500.0,0.00018904,2]
[356986016,1743525056603,-482.6,0.00018904,2]
[356986017,1743525056615,-544.75,0.00018904,2]
[356986018,1743525056627,-500.0,0.00018904,2]
[356986019,1743525056638,-500.0,0.00018904,2]
[356986020,1743525056650,-500.0,0.00018904,2]
[356986021,1743525056661,-500.0,0.00018973,2]
[356986022,1743525056672,-500.0,0.00018973,2]
[356986023,1743525056683,-500.0,0.00018973,2]
[356986024,1743525056694,-686846.14590439,0.00019,2]
[356986025,1743525056705,-600.0,0.0001912,2]
[356986026,1743525056716,-500.0,0.00019161,2]
[356986027,1743525056727,-150.02,0.00019178,2]
[356986028,1743525056738,-500.0,0.00019178,2]
[356986029,1743525056749,-150.02,0.00019178,2]
[356986030,1743525056760,-500.0,0.00019178,2]
[356986031,1743525056771,-150.02,0.00019178,2]
[356986032,1743525056783,-500.0,0.00019178,2]
[356986033,1743525056794,-150.02,0.00019178,2]
[356986034,1743525056805,-500.0,0.00019178,2]
[356986035,1743525056816,-630.22,0.00019178,2]
[356986036,1743525056827,-412.20674668,0.00019178,2]
[356986037,1743525056838,-1029.55,0.00019178,2]
[356986038,1743525056849,-150.02,0.00019178,2]
[356986039,1743525056861,-500.0,0.00019178,2]
[356986040,1743525056874,-600.51,0.00019178,2]
[356986041,1743525056888,-500.0,0.00019178,2]
[356986042,1743525056902,-500.0,0.00019178,2]
[356986043,1743525056913,-500.0,0.00019178,2]
[356986044,1743525056927,-609.0,0.00019178,2]
[356986045,1743525056938,-500.0,0.00019178,2]
[356986046,1743525056950,-150.02,0.00019178,2]
[356986047,1743525056962,-279.08477762,0.00019178,2]
[356986048,1743525056974,-500.0,0.00019178,2]
[356986049,1743525056985,-745.0,0.00019178,2]
[356986050,1743525056998,-150.02,0.00019178,2]
[356986051,1743525057009,-150.02,0.00019178,2]
[356986052,1743525057022,-150.02,0.00019178,2]
[356986053,1743525057034,-500.0,0.00019178,2]
[356986054,1743525057045,-500.0,0.00019178,2]
[356986055,1743525057056,-500.0,0.00019178,2]
[356986056,1743525057228,-500.0,0.00019178,2]
[356986057,1743525057251,-544.75,0.00019178,2]
[356986058,1743525057262,-467.49245237,0.00019178,2]
[356986059,1743525057272,-500.0,0.00019178,2]
[356986060,1743525057284,-500.0,0.00019178,2]
[356986061,1743525057294,-151.0,0.00019178,2]
[356986062,1743525057304,-600.0,0.00019219,2]
[356986063,1743525057314,-156.587,0.00019233,2]
[356986064,1743525057324,-155.977301,0.00019265,2]
[356986065,1743525057334,-162.380719,0.00019288,2]
[356986066,1743525057345,-200.0,0.00019315,2]
[356986067,1743525057355,-150.49503261,0.00019315,2]
[356986068,1743525057366,-729.3233877,0.00019315,2]
[356986069,1743525057376,-150.02,0.00019315,2]
[356986070,1743525057386,-177.98,0.00019315,2]
[356986071,1743525057396,-507.31259771,0.00019315,2]
[356986072,1743525057406,-150.02,0.00019315,2]
[356986073,1743525057416,-150.02,0.00019315,2]
[356986074,1743525057426,-500.0,0.00019315,2]
[356986075,1743525057436,-609.0,0.00019315,2]
[356986076,1743525057447,-500.0,0.00019315,2]
[356986077,1743525057460,-745.0,0.00019315,2]
[356986078,1743525057470,-150.02,0.00019315,2]
[356986079,1743525057480,-150.02,0.00019315,2]
[356986080,1743525057491,-150.02,0.00019315,2]
[356986081,1743525057501,-877.43089944,0.00019315,2]
[356986082,1743525057511,-91094.89604069,0.00019329,2]
[356986085,1743525161404,333.46,0.00010959,2]
[356986154,1743526232010,-10000.0,0.00015027,2]
[356986155,1743526232020,-300.0,0.00015233,2]
[356986156,1743526232030,-161.3740615,0.00015234,2]
[356986157,1743526232040,-172.6769976,0.00015284,2]
[356986158,1743526232050,-20909.8225745,0.00015405,2]
[356986159,1743526232059,-5996.17257781,0.00016233,2]
[356986160,1743526232106,-1998.92121693,0.00016233,2]
[356986187,1743526242970,-2674.35648793,0.00016233,2]
[356986201,1743526245787,-6346.07993961,0.00016233,2]
[356986202,1743526245797,-500.0,0.00016233,2]
[356986203,1743526245807,-500.0,0.00016233,2]
[356986204,1743526245818,-500.0,0.00016233,2]
[356986205,1743526245829,-500.0,0.00016233,2]
[356986206,1743526245842,-159.15413159,0.00016233,2]
[356986214,1743526320474,4143.00405573,0.00025,30]
[356986217,1743526334652,195.18,0.00010959,2]
[356986260,1743527030607,150.0,0.000217,100]
[356986261,1743527045643,150.0,0.000217,100]
[356986275,1743527407152,5745.67861129,0.00025,30]
[356986326,1743527440305,-500.0,0.00016038,2]
[356986328,1743527440316,-162.67,0.00016128,2]
[356986330,1743527440326,-162.67,0.00016128,2]
[356986332,1743527440335,-162.67,0.00016128,2]
[356986334,1743527440344,-162.67,0.00016128,2]
[356986336,1743527440353,-162.67,0.00016128,2]
[356986338,1743527440363,-162.67,0.00016128,2]
[356986340,1743527440373,-162.67,0.00016128,2]
[356986342,1743527440383,-300.0,0.00016136,2]
[356986344,1743527440392,-10457.15650029,0.00016137,2]
[356986346,1743527440405,-1936.22506105,0.00016137,2]
[356986628,1743527443196,-3409.04418821,0.00016137,2]
[356986630,1743527443206,-500.0,0.00016137,2]
[356986632,1743527443217,-500.0,0.00016137,2]
[356986634,1743527443226,-500.0,0.00016137,2]
[356986636,1743527443237,-500.0,0.00016137,2]
[356986638,1743527443247,-500.0,0.00016137,2]
[356986640,1743527443257,-500.0,0.00016137,2]
[356986642,1743527443272,-500.0,0.00016137,2]
[356986644,1743527443282,-493.57881714,0.00016137,2]
[356986646,1743527443291,-500.0,0.00016137,2]
[356986648,1743527443302,-34692.25475551,0.00016138,2]
[356986650,1743527443313,-486.46472543,0.00016138,2]
[356986948,1743527446166,-3411.52479239,0.00016138,2]
[356987713,1743527642918,585.55,0.00010959,2]
[356987890,1743528636063,-301.0416927,0.00015481,2]
[356987891,1743528636074,-339.323339,0.00015605,2]
[356987892,1743528636084,-300.0,0.00015762,2]
[356987893,1743528636094,-15845.4349683,0.00015763,2]
[356987894,1743528636172,-9054.5650317,0.00015763,2]
[356987895,1743528636183,-265.69,0.00016428,2]
[356987896,1743528636194,-265.69,0.00016428,2]
[356987897,1743528636205,-265.69,0.00016428,2]
[356987898,1743528636215,-221.50875746,0.00016437,2]
[356987899,1743528636225,-500.0,0.00016437,2]
[356987900,1743528636235,-419.130758,0.00016437,2]
[356987901,1743528636244,-419.130758,0.00016437,2]
[356987902,1743528636254,-498.84871441,0.00016438,2]
[356987903,1743528636264,-500.0,0.00016438,2]
[356987904,1743528636274,-500.0,0.00016438,2]
[356987905,1743528636284,-500.0,0.00016438,2]
[356987906,1743528636294,-500.0,0.00016438,2]
[356987907,1743528636304,-557.68,0.00016438,2]
[356987908,1743528636314,-500.0,0.00016438,2]
[356987909,1743528636324,-500.0,0.00016438,2]
[356987910,1743528636333,-500.0,0.00016438,2]
[356987911,1743528636343,-500.0,0.00016438,2]
[356987912,1743528636353,-500.0,0.00016438,2]
[356987913,1743528636363,-500.0,0.00016438,2]
[356987914,1743528636376,-500.0,0.00016438,2]
[356987915,1743528636386,-500.0,0.00016438,2]
[356987916,1743528636396,-500.0,0.00016438,2]
[356987917,1743528636406,-500.0,0.00016438,2]
[356987918,1743528636417,-507.4110645,0.00016438,2]
[356987919,1743528636427,-500.0,0.00016438,2]
[356987920,1743528636437,-500.0,0.00016438,2]
[356987921,1743528636448,-500.0,0.00016438,2]
[356987922,1743528636457,-500.0,0.00016438,2]
[356987923,1743528636467,-3065.0,0.00016438,2]
[356987924,1743528636477,-500.0,0.00016438,2]
[356987925,1743528636487,-500.0,0.00016438,2]
[356987926,1743528636496,-500.0,0.00016438,2]
[356987927,1743528636506,-342.25062106,0.00016438,2]
[356987938,1743528638178,-7487.51090544,0.00016438,2]
[356987939,1743528638188,-262.15670603,0.00016632,2]
[356987940,1743528638198,-265.69,0.00016701,2]
[356987941,1743528638207,-265.69,0.00016701,2]
[356987942,1743528638217,-265.69,0.00016701,2]
[356987943,1743528638227,-265.69,0.00016701,2]
[356987944,1743528638237,-265.69,0.00016701,2]
[356987945,1743528638247,-265.69,0.00016701,2]
[356987946,1743528638257,-265.69,0.00016701,2]
[356987947,1743528638267,-500.0,0.00016711,2]
[356987948,1743528638276,-500.0,0.00016711,2]
[356987949,1743528638286,-500.0,0.00016711,2]
[356987950,1743528638295,-24054.43,0.00016711,2]
[356987951,1743528638305,-500.0,0.00016712,2]
[356987952,1743528638315,-500.0,0.00016712,2]
[356987953,1743528638325,-500.0,0.00016712,2]
[356987954,1743528638334,-500.0,0.00016712,2]
[356987955,1743528638344,-557.68,0.00016712,2]
[356987956,1743528638354,-500.0,0.00016712,2]
[356987957,1743528638363,-500.0,0.00016712,2]
[356987958,1743528638373,-500.0,0.00016712,2]
[356987959,1743528638383,-500.0,0.00016712,2]
[356987960,1743528638392,-500.0,0.00016712,2]
[356987961,1743528638402,-500.0,0.00016712,2]
[356987962,1743528638412,-500.0,0.00016712,2]
[356987963,1743528638422,-3065.0,0.00016712,2]
[356987964,1743528638431,-500.0,0.00016984,2]
[356987965,1743528638441,-500.0,0.00016984,2]
[356987966,1743528638451,-251.88010954,0.00016984,2]
[356987967,1743528638461,-500.0,0.00016985,2]
[356987968,1743528638470,-500.0,0.00016985,2]
[356987969,1743528638479,-500.0,0.00016985,2]
[356987970,1743528638488,-24054.43,0.00016985,2]
[356987971,1743528638498,-500.0,0.00016986,2]
[356987972,1743528638507,-500.0,0.00016986,2]
[356987973,1743528638517,-168.53227174,0.00016986,2]
[356987974,1743528638526,-500.0,0.00016986,2]
[356987975,1743528638536,-557.68,0.00016986,2]
[356987976,1743528638546,-500.0,0.00016986,2]
[356987977,1743528638556,-500.0,0.00016986,2]
[356987978,1743528638565,-500.0,0.00016986,2]
[356987979,1743528638576,-500.0,0.00016986,2]
[356987980,1743528638587,-500.0,0.00016986,2]
[356987981,1743528638597,-500.0,0.00016986,2]
[356987982,1743528638606,-500.0,0.00016986,2]
[356987983,1743528638619,-3065.0,0.00016986,2]
[356987984,1743528638630,-152.0,0.00016992,2]
[356987985,1743528638639,-7215.52456966,0.0001716,2]
[356987986,1743528638648,-420.0,0.00017237,2]
[356987987,1743528638660,-500.0,0.00017259,2]
[356987988,1743528638670,-602.55,0.00017259,2]
[356987989,1743528638680,-500.0,0.00017259,2]
[356987990,1743528638689,-21716.79977323,0.00017259,2]
[356987993,1743528640391,-544.33355114,0.00017259,2]
[356987994,1743528640403,-1793.29667563,0.00017259,2]
[356987995,1743528640413,-500.0,0.0001726,2]
[356987996,1743528640423,-500.0,0.0001726,2]
[356987997,1743528640433,-500.0,0.0001726,2]
[356987998,1743528640442,-557.68,0.0001726,2]
[356988000,1743528640452,-500.0,0.0001726,2]
[356988002,1743528640461,-500.0,0.0001726,2]
[356988003,1743528640471,-500.0,0.0001726,2]
[356988004,1743528640480,-500.0,0.0001726,2]
[356988005,1743528640491,-500.0,0.0001726,2]
[356988006,1743528640500,-500.0,0.0001726,2]
[356988007,1743528640510,-500.0,0.0001726,2]
[356988008,1743528640519,-3065.0,0.0001726,2]
[356988009,1743528640529,-542.0,0.0001752,2]
[356988010,1743528640539,-150.0,0.0001752,2]
[356988011,1743528640549,-1916.0,0.0001752,2]
[356988012,1743528640558,-2258.0,0.0001752,2]
[356988013,1743528640569,-401.0,0.0001752,2]
[356988014,1743528640581,-500.0,0.00017533,2]
[356988015,1743528640590,-562.05032516,0.00017533,2]
[356988016,1743528640599,-24054.43,0.00017533,2]
[356988017,1743528640609,-500.0,0.00017534,2]
[356988018,1743528640618,-625.7648,0.00017534,2]
[356988019,1743528640628,-500.0,0.00017534,2]
[356988020,1743528640637,-557.68,0.00017534,2]
[356988021,1743528640651,-500.0,0.00017534,2]
[356988022,1743528640663,-500.0,0.00017534,2]
[356988023,1743528640673,-500.0,0.00017534,2]
[356988024,1743528640683,-500.0,0.00017534,2]
[356988025,1743528640693,-500.0,0.00017534,2]
[356988026,1743528640703,-500.0,0.00017534,2]
[356988027,1743528640712,-500.0,0.00017534,2]
[356988028,1743528640722,-3065.0,0.00017534,2]
[356988029,1743528640732,-150.0,0.00017557,2]
[356988030,1743528640742,-155.977301,0.00017673,2]
[356988031,1743528640751,-34.97017885,0.00017807,2]
[356988032,1743528640765,-278.27627794,0.00017807,2]
[356988033,1743528640774,-6652.22979335,0.00017807,2]
[356988034,1743528640786,-1546.78600054,0.00017807,2]
[356988035,1743528640798,-10226.92916651,0.00017807,2]
[356988036,1743528640810,-2069.59999999,0.00017807,2]
[356988070,1743528777264,876.06,0.00010959,2]
[356988072,1743528781893,-180.192473,0.00016438,2]
[356988074,1743528786493,-180.40614429,0.00016437,2]
[356988077,1743528796256,-119.59385571,0.00016437,2]
[356988078,1743528796279,-155.003402,0.00016438,2]
[356988079,1743528798034,175.21,0.00010959,2]
[356988080,1743528801808,-164.804125,0.00016438,2]
[356988081,1743528801832,-15.388348,0.00016438,2]
[356988084,1743528808169,-176.92108597,0.00016438,2]
[356988089,1743528826563,-172.87853869,0.00016274,2]
[356988090,1743528830754,-135.58311422,0.00016274,2]
[356988091,1743528830777,-75.66345623,0.00016438,2]
[356988092,1743528834431,-153.92089248,0.00016274,2]
[356988093,1743528840131,-164.97350521,0.00016274,2]
[356988094,1743528845322,-30.90522697,0.00016274,2]
[356988095,1743528845346,-269.09477303,0.00016437,2]
[356988097,1743528864529,-30.90522697,0.00016437,2]
[356988098,1743528864551,-121.95609009,0.00016438,2]
[356988100,1743528873024,-211.24657045,0.00016274,2]
[356988101,1743528873048,-22.82314195,0.00016438,2]
[356988122,1743529683425,-216.9001104,0.0001583,2]
[356988123,1743529685173,-83.0998896,0.0001583,2]
[356988124,1743529685201,-335.62827073,0.00015831,2]
[356988129,1743529698448,-448.17536514,0.00015831,2]
[356988130,1743529713760,-332.31469702,0.00015831,2]
[356988131,1743529721181,-384.13933188,0.00015831,2]
[356988132,1743529724102,-400.0,0.00015831,2]
[356988133,1743529732133,-400.0,0.00015831,2]
[356988137,1743529742226,-400.0,0.00015831,2]
[356988138,1743529750169,-300.0,0.0001583,2]
[356988139,1743529750194,-100.0,0.00015831,2]
[356988141,1743529778865,-215.0,0.00015831,2]
[356988142,1743529785319,-200.0,0.00015831,2]
[356988153,1743529804343,-300.0,0.0001583,2]
[356988154,1743529821592,-332.31469702,0.00015831,2]
[356988155,1743529825517,-167.68530298,0.00015831,2]
[356988186,1743529832434,-332.31469702,0.00015673,2]
[356988187,1743529832445,-21184.74233523,0.00015831,2]
[356988188,1743529832455,-1005.8254272,0.00015831,2]
[356988189,1743529832465,-2337.66077949,0.00016338,2]
[356988190,1743529832476,-500.0,0.00016437,2]
[356988191,1743529832486,-500.0,0.00016437,2]
[356988192,1743529832495,-392.38639862,0.00016437,2]
[356988193,1743529832505,-332.31469702,0.00016437,2]
[356988194,1743529832515,-500.0,0.00016437,2]
[356988195,1743529832525,-284.13933188,0.00016437,2]
[356988196,1743529832535,-400.0,0.00016437,2]
[356988197,1743529832545,-241.84653355,0.00016437,2]
[356988287,1743529840938,-0.00545611,0.00016437,2]
[356988323,1743529843543,-158.14801034,0.00016437,2]
[356988324,1743529843553,-400.0,0.00016437,2]
[356988325,1743529843563,-500.0,0.00016438,2]
[356988326,1743529843573,-500.0,0.00016438,2]
[356988327,1743529843583,-500.0,0.00016438,2]
[356988328,1743529843593,-504.44106493,0.00016438,2]
[356988329,1743529843603,-500.0,0.00016438,2]
[356988330,1743529843613,-500.0,0.00016438,2]
[356988331,1743529843625,-597.6694268,0.00016438,2]
[356988332,1743529843636,-500.0,0.00016438,2]
[356988333,1743529843646,-4663.28511025,0.00016438,2]
[356988334,1743529843686,-8119.49488975,0.00016438,2]
[356988335,1743529843696,-500.0,0.00016438,2]
[356988336,1743529843706,-416.52,0.00016438,2]
[356988337,1743529843716,-2426.46,0.00016438,2]
[356988338,1743529843725,-500.0,0.00016438,2]
[356988339,1743529843734,-500.0,0.00016712,2]
[356988340,1743529843744,-500.0,0.00016712,2]
[356988341,1743529843754,-500.0,0.00016712,2]
[356988342,1743529843764,-500.0,0.00016712,2]
[356988343,1743529843774,-500.0,0.00016712,2]
[356988344,1743529843784,-314.00392357,0.00016712,2]
[356988345,1743529843794,-12782.78,0.00016712,2]
[356988346,1743529843804,-500.0,0.00016712,2]
[356988347,1743529843814,-2426.46,0.00016712,2]
[356988348,1743529843824,-500.0,0.00016712,2]
[356988349,1743529843833,-542.0,0.00016842,2]
[356988350,1743529843843,-2258.0,0.00016842,2]
[356988351,1743529843853,-1916.0,0.00016842,2]
[356988352,1743529843863,-401.0,0.00016842,2]
[356988353,1743529843873,-25555.91086222,0.00016885,2]
[356988354,1743529843882,-439.97302924,0.00016886,2]
[356988355,1743529843892,-500.0,0.00016985,2]
[356988356,1743529843902,-539.71589448,0.00016985,2]
[356988357,1743529843912,-500.0,0.00016986,2]
[356988358,1743529843922,-151.0,0.00016986,2]
[356988359,1743529843933,-500.0,0.00016986,2]
[356988360,1743529843944,-382.923552,0.00016986,2]
[356988361,1743529843954,-382.923552,0.00016986,2]
[356988362,1743529843964,-500.0,0.00016986,2]
[356988363,1743529843974,-500.0,0.00016986,2]
[356988364,1743529843984,-489.16095619,0.00016986,2]
[356988365,1743529843997,-151.0,0.00016986,2]
[356988366,1743529844007,-12782.78,0.00016986,2]
[356988368,1743529844017,-500.0,0.00016986,2]
[356988370,1743529844026,-2426.46,0.00016986,2]
[356988372,1743529844037,-500.0,0.00016986,2]
[356988374,1743529844047,-500.0,0.0001726,2]
[356988376,1743529844057,-151.0,0.0001726,2]
[356988377,1743529844066,-500.0,0.0001726,2]
[356988378,1743529844077,-382.923552,0.0001726,2]
[356988379,1743529844087,-382.923552,0.0001726,2]
[356988380,1743529844097,-500.0,0.0001726,2]
[356988381,1743529844106,-500.0,0.0001726,2]
[356988382,1743529844117,-151.0,0.0001726,2]
[356988383,1743529844128,-12782.78,0.0001726,2]
[356988384,1743529844137,-500.0,0.0001726,2]
[356988385,1743529844147,-2426.46,0.0001726,2]
[356988386,1743529844157,-500.0,0.0001726,2]
[356988387,1743529844167,-420.0,0.0001731,2]
[356988388,1743529844176,-439.97302923,0.00017474,2]
[356988389,1743529844186,-500.0,0.00017534,2]
[356988390,1743529844196,-151.0,0.00017534,2]
[356988391,1743529844207,-500.0,0.00017534,2]
[356988392,1743529844217,-382.923552,0.00017534,2]
[356988393,1743529844226,-382.923552,0.00017534,2]
[356988394,1743529844236,-500.0,0.00017534,2]
[356988395,1743529844246,-500.0,0.00017534,2]
[356988396,1743529844256,-151.0,0.00017534,2]
[356988397,1743529844266,-12782.78,0.00017534,2]
[356988398,1743529844276,-344.87544307,0.00017534,2]
[356988399,1743529844286,-2426.46,0.00017534,2]
[356988400,1743529844296,-500.0,0.00017534,2]
[356988401,1743529844305,-500.0,0.0001759,2]
[356988402,1743529844315,-500.0,0.0001759,2]
[356988403,1743529844325,-500.0,0.0001759,2]
[356988404,1743529844335,-500.0,0.0001759,2]
[356988405,1743529844345,-500.0,0.0001759,2]
[356988406,1743529844354,-500.0,0.0001759,2]
[356988407,1743529844364,-500.0,0.0001759,2]
[356988408,1743529844374,-500.0,0.0001759,2]
[356988409,1743529844384,-534.13409719,0.0001759,2]
[356988410,1743529844394,-155.977301,0.000176,2]
[356988411,1743529844404,-155.977301,0.0001773,2]
[356988412,1743529844415,-151.0,0.00017806,2]
[356988413,1743529844425,-500.0,0.00017808,2]
[356988414,1743529844435,-151.0,0.00017808,2]
[356988415,1743529844445,-500.0,0.00017808,2]
[356988416,1743529844455,-382.923552,0.00017808,2]
[356988417,1743529844466,-382.923552,0.00017808,2]
[356988418,1743529844476,-500.0,0.00017808,2]
[356988419,1743529844486,-500.0,0.00017808,2]
[356988420,1743529844496,-151.0,0.00017808,2]
[356988421,1743529844505,-12782.78,0.00017808,2]
[356988422,1743529844515,-2426.46,0.00017808,2]
[356988423,1743529844525,-500.0,0.00017808,2]
[356988424,1743529844541,-155.977301,0.0001786,2]
[356988425,1743529844555,-2636.8,0.00017963,2]
[356988426,1743529844565,-160.0,0.00017998,2]
[356988427,1743529844575,-12458.93820146,0.00017998,2]
[356988428,1743529844585,-418.94013069,0.00017998,2]
[356988429,1743529844595,-835.82398976,0.00017998,2]
[356988430,1743529844605,-160.0,0.00017998,2]
[356988431,1743529844615,-160.0,0.00017998,2]
[356988432,1743529844625,-382.923552,0.00017998,2]
[356988433,1743529844635,-382.923552,0.00017998,2]
[356988434,1743529844645,-151.0,0.00017998,2]
[356988435,1743529844654,-462.64410721,0.00018,2]
[356988444,1743529846430,-612.50317468,0.00018,2]
[356988445,1743529846439,-1075.14728168,0.00018,2]
[356988446,1743529846449,-439.97302923,0.00018062,2]
[356988447,1743529846458,-355.90484861,0.00018082,2]
[356988448,1743529846468,-500.0,0.00018082,2]
[356988449,1743529846477,-251.45312412,0.00018082,2]
[356988451,1743529846489,-131.47042788,0.00018082,2]
[356988453,1743529846498,-382.923552,0.00018082,2]
[356988455,1743529846511,-500.0,0.00018082,2]
[356988457,1743529846521,-223.03651564,0.00018082,2]
[356988468,1743530112731,2500.0,0.00025,120]
[356988555,1743531032567,-167.6853029,0.00015418,2]
[356988557,1743531032577,-295.25780128,0.00015573,2]
[356988559,1743531032588,-300.0,0.00015706,2]
[356988561,1743531032598,-500.0,0.00015707,2]
[356988562,1743531032612,-500.0,0.00015707,2]
[356988563,1743531032622,-500.0,0.00015707,2]
[356988564,1743531032632,-500.0,0.00015707,2]
[356988565,1743531032641,-502.5014563,0.00015707,2]
[356988566,1743531032651,-485.34147482,0.00015707,2]
[356988567,1743531032661,-500.0,0.00015707,2]
[356988568,1743531032672,-166.94460626,0.00015707,2]
[356988569,1743531032682,-500.0,0.00015707,2]
[356988570,1743531032692,-2545.81118932,0.00015707,2]
[356988571,1743531032702,-24900.0,0.00015708,2]
[356988572,1743531032711,-2289.57538941,0.00016338,2]
[356988573,1743531032722,-1819.84,0.00016438,2]
[356988575,1743531032732,-500.0,0.00016611,2]
[356988577,1743531032742,-500.0,0.00016611,2]
[356988579,1743531032751,-185.23646786,0.00016612,2]
[356988581,1743531032761,-185.23646785,0.00016641,2]
[356988583,1743531032771,-185.23646785,0.0001667,2]
[356988585,1743531032781,-500.0,0.0001671,2]
[356988587,1743531032791,-500.0,0.0001671,2]
[356988589,1743531032800,-15978.48,0.00016711,2]
[356988591,1743531032810,-183.321,0.00016712,2]
[356988593,1743531032820,-1819.84,0.00016712,2]
[356988595,1743531032830,-500.0,0.00016741,2]
[356988597,1743531032840,-418.57793693,0.00016741,2]